fUSD/lending_fUSD_20260107
["ID","MTS","AMOUNT","RATE_DAILY","PERIOD"]
[400730559,1767801820971,-500.0,0.00015013,2]
[400730560,1767801820981,-500.0,0.00015013,2]
[400730561,1767801820992,-500.0,0.00015013,2]
[400730562,1767801821002,-500.0,0.00015013,2]
[400730563,1767801821012,-500.0,0.00015013,2]
[400730564,1767801821022,-500.0,0.00015013,2]
[400730565,1767801821031,-500.0,0.00015013,2]
[400730566,1767801821041,-17.5847495,0.00015013,2]
[400730567,1767801822279,-482.4152505,0.00015013,2]
[400730568,1767801822321,-500.0,0.00015013,2]
[400730569,1767801822365,-500.0,0.00015013,2]
[400730570,1767801822407,-500.0,0.00015013,2]
[400730571,1767801822448,-500.0,0.00015013,2]
[400730572,1767801822493,-500.0,0.00015013,2]
[400730573,1767801822534,-500.0,0.00015013,2]
[400730574,1767801822575,-500.0,0.00015013,2]
[400730575,1767801822619,-500.0,0.00015013,2]
[400730576,1767801822659,-500.0,0.00015013,2]
[400730577,1767801824026,-35.179499,0.00015013,2]
[400730578,1767801826955,-464.820501,0.00015013,2]
[400730579,1767801826995,-500.0,0.00015013,2]
[400730580,1767801827035,-500.0,0.00015013,2]
[400730581,1767801827073,-500.0,0.00015013,2]
[400730582,1767801827111,-350.0,0.00015013,2]
[400730583,1767801827151,-500.0,0.00015013,2]
[400730584,1767801827190,-500.0,0.00015013,2]
[400730585,1767801827228,-500.0,0.00015013,2]
[400730586,1767801827266,-500.0,0.00015013,2]
[400730587,1767801827304,-500.0,0.00015013,2]
[400730588,1767801827544,-500.0,0.00015013,2]
[400730589,1767801827586,-500.0,0.00015013,2]
[400730590,1767801828017,-370.368998,0.00015014,2]
[400730591,1767801828036,-8000.01,0.00015014,2]
[400730592,1767801833004,-10000.01,0.00015014,2]
[400730593,1767801833182,-10000.01,0.00015014,2]
[400730594,1767801866450,-10000.01,0.00015014,2]
[400730595,1767801866758,-10000.01,0.00015014,2]
[400730596,1767801874616,-10000.01,0.00015014,2]
[400730597,1767801874649,-10000.01,0.00015014,2]
[400730599,1767801962223,1084.50809271,0.00014916,2]
[400730610,1767802019323,21104.55232398,0.00014916,2]
[400730614,1767802093574,500.0,0.00014957,2]
[400730615,1767802093812,500.0,0.00014957,2]
[400730616,1767802094099,500.0,0.00014957,2]
[400730617,1767802095202,150.0,0.00014957,2]
[400730618,1767802096085,150.0,0.00014957,2]
[400730619,1767802096318,500.0,0.00014957,2]
[400730620,1767802096405,500.0,0.00014957,2]
[400730621,1767802097541,500.0,0.00014957,2]
[400730622,1767802099365,500.0,0.00014957,2]
[400730623,1767802100067,150.0,0.00014957,2]
[400730624,1767802100488,150.0,0.00014957,2]
[400730625,1767802100589,539.0,0.00014957,2]
[400730626,1767802101128,500.0,0.00014957,2]
[400730627,1767802101727,150.0,0.00014957,2]
[400730628,1767802101787,500.0,0.00014957,2]
[400730629,1767802105334,28856.4606549,0.00014916,2]
[400730702,1767802151986,500.0,0.00014957,2]
[400730703,1767802152891,500.0,0.00014957,2]
[400730704,1767802153754,980.0,0.00014957,2]
[400730705,1767802154125,500.0,0.00014957,2]
[400730706,1767802154400,1111.0,0.00014957,2]
[400730707,1767802170597,1000000.0,0.00014914,2]
[400730708,1767802186679,1000.0,0.00032877,120]
[400730715,1767802232422,-300.0,0.00015003,2]
[400730716,1767802232431,-1200.0,0.00015003,2]
[400730717,1767802232441,-300.0,0.00015004,2]
[400730718,1767802232451,-275.0,0.00015004,2]
[400730719,1767802232461,-250.0,0.00015004,2]
[400730720,1767802232471,-1783.89937804,0.00015004,2]
[400730721,1767802232494,-5469.63784536,0.00015004,2]
[400730722,1767802232556,-20745.90661688,0.00015004,2]
[400730723,1767802232566,-500.0,0.00015005,2]
[400730724,1767802232576,-151.0,0.00015005,2]
[400730725,1767802232586,-151.0,0.00015005,2]
[400730728,1767802232596,-151.0,0.00015005,2]
[400730729,1767802232606,-151.0,0.00015005,2]
[400730731,1767802232615,-151.0,0.00015005,2]
[400730733,1767802232626,-151.0,0.00015005,2]
[400730736,1767802232635,-151.0,0.00015005,2]
[400730737,1767802232645,-151.0,0.00015005,2]
[400730739,1767802232655,-151.0,0.00015005,2]
[400730742,1767802232665,-151.0,0.00015005,2]
[400730745,1767802232675,-151.0,0.00015005,2]
[400730747,1767802232684,-151.0,0.00015005,2]
[400730749,1767802232693,-151.0,0.00015005,2]
[400730751,1767802232703,-151.0,0.00015005,2]
[400730753,1767802232716,-151.0,0.00015005,2]
[400730756,1767802232730,-151.0,0.00015005,2]
[400730758,1767802232739,-151.0,0.00015005,2]
[400730760,1767802232749,-151.0,0.00015005,2]
[400730762,1767802232758,-151.0,0.00015005,2]
[400730764,1767802232768,-151.0,0.00015005,2]
[400730766,1767802232778,-151.0,0.00015005,2]
[400730768,1767802232787,-151.0,0.00015005,2]
[400730770,1767802232796,-151.0,0.00015005,2]
[400730772,1767802232807,-151.0,0.00015005,2]
[400730774,1767802232818,-151.0,0.00015005,2]
[400730776,1767802232828,-151.0,0.00015005,2]
[400730778,1767802232838,-151.0,0.00015005,2]
[400730780,1767802232848,-151.0,0.00015005,2]
[400730782,1767802232857,-151.0,0.00015005,2]
[400730784,1767802232867,-151.0,0.00015005,2]
[400730786,1767802232877,-151.0,0.00015005,2]
[400730788,1767802232886,-500.0,0.00015012,2]
[400730790,1767802232895,-500.0,0.00015012,2]
[400730792,1767802232905,-500.0,0.00015012,2]
[400730794,1767802232915,-150.0,0.00015012,2]
[400730796,1767802232925,-500.0,0.00015012,2]
[400730798,1767802232935,-500.0,0.00015012,2]
[400730800,1767802232944,-500.0,0.00015012,2]
[400730802,1767802232954,-500.0,0.00015012,2]
[400730804,1767802232964,-151.66178001,0.00015012,2]
[400730806,1767802232974,-539.0,0.00015012,2]
[400730808,1767802232984,-500.0,0.00015012,2]
[400730810,1767802232993,-500.0,0.00015012,2]
[400730812,1767802233003,-500.0,0.00015012,2]
[400730814,1767802233013,-500.0,0.00015012,2]
[400730816,1767802233023,-980.0,0.00015012,2]
[400730818,1767802233032,-500.0,0.00015012,2]
[400730820,1767802233042,-1111.0,0.00015012,2]
[400730822,1767802233052,-420.4969783,0.00015013,2]
[400730824,1767802233061,-500.0,0.00015013,2]
[400730826,1767802233071,-515.01569195,0.00015013,2]
[400730828,1767802233080,-508.16431547,0.00015013,2]
[400730830,1767802233089,-256.0,0.00015013,2]
[400730833,1767802233102,-500.0,0.00015013,2]
[400730835,1767802233112,-500.0,0.00015013,2]
[400730837,1767802233122,-500.0,0.00015013,2]
[400730839,1767802233131,-500.0,0.00015013,2]
[400730841,1767802233142,-500.0,0.00015013,2]
[400730843,1767802233151,-500.0,0.00015013,2]
[400730845,1767802233161,-1000.0,0.00015013,2]
[400730847,1767802233172,-195.0,0.00015014,2]
[400730849,1767802233182,-200.0,0.00015014,2]
[400730851,1767802233191,-151.0,0.00015014,2]
[400730853,1767802233201,-151.0,0.00015014,2]
[400730855,1767802233211,-195.0,0.00015016,2]
[400730857,1767802233220,-3585.93097738,0.00015024,2]
[400730859,1767802233233,-2658.53762262,0.00015024,2]
[400730861,1767802233244,-1000.0,0.00015024,2]
[400730863,1767802233254,-315.25267446,0.00015024,2]
[400730866,1767802233266,-1526.62227921,0.00015024,2]
[400730871,1767802233306,-1891.96778752,0.00015024,2]
[400730873,1767802233318,-1292.2457146,0.00015024,2]
[400730876,1767802233331,-725.51791675,0.00015024,2]
[400730886,1767802233418,-382.35999,0.00015024,2]
[400730888,1767802233430,-2268.84353746,0.00015024,2]
[400730890,1767802233440,-500.0,0.00015024,2]
[400730892,1767802233450,-999.99,0.00015047,2]
[400730894,1767802233459,-150.99,0.00015047,2]
[400730896,1767802233472,-9999.99,0.00015047,2]
[400730898,1767802233485,-500.0,0.00015067,2]
[400730900,1767802233495,-500.0,0.00015067,2]
[400730902,1767802233505,-500.0,0.00015067,2]
[400730905,1767802233515,-210.07522356,0.00015067,2]
[400730907,1767802233525,-500.0,0.00015067,2]
[400730909,1767802233534,-500.0,0.00015067,2]
[400730911,1767802233544,-500.0,0.00015067,2]
[400730912,1767802233556,-324.70268311,0.00015067,2]
[400730915,1767802233566,-539.0,0.00015067,2]
[400730917,1767802233575,-500.0,0.00015067,2]
[400730919,1767802233585,-500.0,0.00015067,2]
[400730921,1767802233595,-500.0,0.00015067,2]
[400730923,1767802233605,-500.0,0.00015067,2]
[400730925,1767802233615,-980.0,0.00015067,2]
[400730927,1767802233625,-500.0,0.00015067,2]
[400730929,1767802233635,-1111.0,0.00015067,2]
[400730931,1767802233645,-175.21486475,0.00015073,2]
[400730933,1767802233655,-169.74559645,0.00015073,2]
[400730935,1767802233665,-500.0,0.00015073,2]
[400730937,1767802233678,-500.0,0.00015073,2]
[400730939,1767802233688,-500.0,0.00015073,2]
[400730941,1767802233698,-500.0,0.00015073,2]
[400730943,1767802233708,-500.0,0.00015073,2]
[400730945,1767802233718,-500.0,0.00015073,2]
[400730947,1767802233728,-500.0,0.00015073,2]
[400730949,1767802233738,-500.0,0.00015073,2]
[400730951,1767802233749,-500.0,0.00015073,2]
[400730953,1767802233759,-500.0,0.00015073,2]
[400730956,1767802233769,-500.0,0.00015073,2]
[400730958,1767802233778,-500.0,0.00015073,2]
[400730960,1767802233788,-500.0,0.00015073,2]
[400730962,1767802233797,-536.66734105,0.00015073,2]
[400730964,1767802233807,-161.8794398,0.00015073,2]
[400730966,1767802233816,-538.59757642,0.00015073,2]
[400730968,1767802233826,-165.31618738,0.00015073,2]
[400730970,1767802233835,-500.0,0.00015073,2]
[400730972,1767802233845,-164.10183588,0.00015073,2]
[400730974,1767802233855,-500.0,0.00015073,2]
[400730976,1767802233864,-224.66209336,0.00015073,2]
[400730978,1767802233874,-500.0,0.00015073,2]
[400730980,1767802233883,-165.68588329,0.00015073,2]
[400730982,1767802233893,-169.0457871,0.00015073,2]
[400730984,1767802233902,-500.0,0.00015073,2]
[400730986,1767802233912,-163.2920989,0.00015073,2]
[400730988,1767802233922,-500.0,0.00015073,2]
[400730990,1767802233932,-501.49821678,0.00015073,2]
[400730992,1767802233942,-500.0,0.00015073,2]
[400730994,1767802233951,-500.0,0.00015073,2]
[400730996,1767802233961,-500.0,0.00015073,2]
[400730998,1767802233970,-500.0,0.00015073,2]
[400731000,1767802233980,-500.0,0.00015073,2]
[400731002,1767802233991,-500.0,0.00015073,2]
[400731003,1767802234001,-500.0,0.00015073,2]
[400731005,1767802234011,-166.24303816,0.00015073,2]
[400731008,1767802234021,-485.97527636,0.00015073,2]
[400731010,1767802234030,-162.472435,0.00015073,2]
[400731012,1767802234040,-216.8908213,0.00015073,2]
[400731014,1767802234049,-500.0,0.00015073,2]
[400731016,1767802234059,-500.0,0.00015073,2]
[400731018,1767802234069,-500.0,0.00015073,2]
[400731060,1767802234458,-500.0,0.00015073,2]
[400731062,1767802234478,-500.0,0.00015073,2]
[400731065,1767802234491,-500.0,0.00015073,2]
[400731066,1767802234502,-500.0,0.00015073,2]
[400731068,1767802234511,-1626.81,0.00015073,2]
[400731069,1767802234521,-432.94026437,0.000151,2]
[400731070,1767802234531,-500.0,0.00015121,2]
[400731071,1767802234540,-500.0,0.00015121,2]
[400731072,1767802234551,-500.0,0.00015121,2]
[400731073,1767802234561,-500.0,0.00015121,2]
[400731074,1767802234570,-500.0,0.00015121,2]
[400731075,1767802234580,-500.0,0.00015121,2]
[400731076,1767802234589,-539.0,0.00015121,2]
[400731077,1767802234599,-500.0,0.00015121,2]
[400731078,1767802234609,-500.0,0.00015121,2]
[400731079,1767802234618,-500.0,0.00015121,2]
[400731080,1767802234628,-419.73178308,0.00015121,2]
[400731081,1767802234638,-980.0,0.00015121,2]
[400731083,1767802234647,-489.75412661,0.00015121,2]
[400731085,1767802234656,-1111.0,0.00015121,2]
[400731087,1767802234666,-200.0,0.00015164,2]
[400731088,1767802234676,-200.0,0.00015164,2]
[400731089,1767802234686,-500.0,0.00015176,2]
[400731090,1767802234695,-500.0,0.00015176,2]
[400731091,1767802234705,-344.59805743,0.00015176,2]
[400731092,1767802234714,-500.0,0.00015176,2]
[400731093,1767802234724,-500.0,0.00015176,2]
[400731094,1767802234733,-500.0,0.00015176,2]
[400731095,1767802234743,-539.0,0.00015176,2]
[400731096,1767802234752,-406.89851448,0.00015176,2]
[400731097,1767802234762,-500.0,0.00015176,2]
[400731098,1767802234771,-500.0,0.00015176,2]
[400731099,1767802234780,-980.0,0.00015176,2]
[400731100,1767802234790,-1111.0,0.00015176,2]
[400731101,1767802234800,-299.99,0.00015178,2]
[400731102,1767802234810,-4314.3259,0.00015178,2]
[400731103,1767802234820,-500.0,0.00015223,2]
[400731104,1767802234829,-500.0,0.00015223,2]
[400731105,1767802234839,-500.0,0.00015223,2]
[400731106,1767802234848,-574.78,0.00015223,2]
[400731107,1767802234858,-574.78,0.00015223,2]
[400731108,1767802234868,-500.0,0.00015223,2]
[400731109,1767802234878,-19999.99,0.00015223,2]
[400731110,1767802234887,-9999.99,0.00015223,2]
[400731111,1767802234897,-150.99,0.00015223,2]
[400731112,1767802234906,-419.33594592,0.00015223,2]
[400731113,1767802234916,-500.0,0.00015231,2]
[400731114,1767802234925,-500.0,0.00015231,2]
[400731115,1767802234935,-500.0,0.00015231,2]
[400731116,1767802234944,-500.0,0.00015231,2]
[400731117,1767802234953,-500.0,0.00015231,2]
[400731118,1767802234963,-539.0,0.00015231,2]
[400731119,1767802234972,-500.0,0.00015231,2]
[400731120,1767802234982,-500.0,0.00015231,2]
[400731121,1767802234991,-980.0,0.00015231,2]
[400731122,1767802235001,-1111.0,0.00015231,2]
[400731123,1767802235010,-500.0,0.00015231,2]
[400731124,1767802235019,-500.0,0.00015231,2]
[400731125,1767802235028,-500.0,0.00015231,2]
[400731126,1767802235038,-597.23624248,0.00015231,2]
[400731127,1767802235046,-21104.55232392,0.00015248,2]
[400731128,1767802235056,-28856.46065488,0.00015248,2]
[400731129,1767802235065,-500.0,0.00015249,2]
[400731130,1767802235074,-500.0,0.00015249,2]
[400731131,1767802235083,-166.66,0.00015255,2]
[400731132,1767802235092,-500.0,0.00015286,2]
[400731133,1767802235101,-500.0,0.00015286,2]
[400731134,1767802235110,-500.0,0.00015286,2]
[400731135,1767802235120,-500.0,0.00015286,2]
[400731136,1767802235130,-500.0,0.00015286,2]
[400731137,1767802235139,-539.0,0.00015286,2]
[400731138,1767802235148,-606.19487819,0.00015286,2]
[400731139,1767802235158,-500.0,0.00015286,2]
[400731140,1767802235167,-980.0,0.00015286,2]
[400731141,1767802235176,-1111.0,0.00015286,2]
[400731142,1767802235186,-500.0,0.00015298,2]
[400731143,1767802235197,-1706.94994789,0.00015309,2]
[400731144,1767802235207,-200.0,0.00015316,2]
[400731145,1767802235219,-200.0,0.00015316,2]
[400731146,1767802235228,-500.0,0.00015341,2]
[400731147,1767802235238,-500.0,0.00015341,2]
[400731148,1767802235246,-500.0,0.00015341,2]
[400731149,1767802235254,-500.0,0.00015341,2]
[400731150,1767802235263,-500.0,0.00015341,2]
[400731151,1767802235272,-539.0,0.00015341,2]
[400731152,1767802235282,-500.0,0.00015341,2]
[400731153,1767802235291,-980.0,0.00015341,2]
[400731154,1767802235300,-1111.0,0.00015341,2]
[400731155,1767802235308,-1626.81,0.00015347,2]
[400731156,1767802235317,-500.0,0.00015395,2]
[400731157,1767802235326,-500.0,0.00015395,2]
[400731158,1767802235334,-420.70051101,0.00015395,2]
[400731159,1767802235342,-500.0,0.00015395,2]
[400731160,1767802235351,-500.0,0.00015395,2]
[400731161,1767802235361,-539.0,0.00015395,2]
[400731162,1767802235371,-500.0,0.00015395,2]
[400731163,1767802235380,-980.0,0.00015395,2]
[400731164,1767802235389,-1111.0,0.00015395,2]
[400731165,1767802235399,-500.0,0.00015408,2]
[400731166,1767802235409,-500.0,0.00015408,2]
[400731167,1767802235418,-1519.62,0.00015409,2]
[400731168,1767802235428,-1562.21,0.00015409,2]
[400731169,1767802235437,-1341.63,0.00015409,2]
[400731170,1767802235448,-6586.36,0.00015409,2]
[400731171,1767802235457,-3128.54845686,0.00015409,2]
[400731402,1767802240927,-8160.96154314,0.00015409,2]
[400731404,1767802240936,-1062.54,0.00015409,2]
[400731406,1767802240946,-1158.70395692,0.00015409,2]
[400731408,1767802240956,-6843.11604308,0.00015409,2]
[400731410,1767802240967,-11370.35,0.00015409,2]
[400731412,1767802240976,-44501.04,0.00015409,2]
[400731414,1767802240986,-500.0,0.0001545,2]
[400731416,1767802240995,-500.0,0.0001545,2]
[400731417,1767802241004,-500.0,0.0001545,2]
[400731418,1767802241013,-500.0,0.0001545,2]
[400731419,1767802241022,-539.0,0.0001545,2]
[400731420,1767802241032,-500.0,0.0001545,2]
[400731421,1767802241041,-980.0,0.0001545,2]
[400731422,1767802241051,-1111.0,0.0001545,2]
[400731424,1767802241060,-200.0,0.00015469,2]
[400731426,1767802241069,-200.0,0.00015469,2]
[400731428,1767802241078,-500.0,0.00015505,2]
[400731429,1767802241087,-356.3800823,0.00015505,2]
[400731430,1767802241096,-500.0,0.00015505,2]
[400731431,1767802241106,-241.37376107,0.00015505,2]
[400731432,1767802241115,-539.0,0.00015505,2]
[400731433,1767802241125,-500.0,0.00015505,2]
[400731434,1767802241134,-980.0,0.00015505,2]
[400731435,1767802241143,-1111.0,0.00015505,2]
[400731436,1767802241153,-5702.97,0.00015532,2]
[400731437,1767802241162,-500.0,0.0001556,2]
[400731438,1767802241172,-494.00411142,0.0001556,2]
[400731439,1767802241182,-539.0,0.0001556,2]
[400731440,1767802241191,-500.0,0.0001556,2]
[400731441,1767802241200,-980.0,0.0001556,2]
[400731442,1767802241209,-1111.0,0.0001556,2]
[400731443,1767802241219,-166.66,0.00015563,2]
[400731444,1767802241228,-500.0,0.00015572,2]
[400731445,1767802241239,-21104.55232392,0.00015579,2]
[400731446,1767802241250,-28856.46065488,0.00015579,2]
[400731447,1767802241261,-500.0,0.00015615,2]
[400731448,1767802241270,-539.0,0.00015615,2]
[400731449,1767802241279,-500.0,0.00015615,2]
[400731450,1767802241290,-980.0,0.00015615,2]
[400731451,1767802241301,-1111.0,0.00015615,2]
[400731452,1767802241311,-1002.16378022,0.00015621,2]
[400731453,1767802241321,-1000.0,0.00015621,2]
[400731454,1767802241331,-1029.13192156,0.00015621,2]
[400731455,1767802241341,-442.83023798,0.00015621,2]
[400731456,1767802241355,-1000.0,0.00015621,2]
[400731457,1767802241370,-1000.0,0.00015621,2]
[400731458,1767802241381,-1000.0,0.00015621,2]
[400731459,1767802241391,-500.0,0.00015621,2]
[400731460,1767802241400,-1000.0,0.00015621,2]
[400731461,1767802241410,-1000.0,0.00015621,2]
[400731462,1767802241420,-1000.0,0.00015621,2]
[400731463,1767802241431,-564.80231149,0.00015621,2]
[400731464,1767802241440,-556.0741427,0.00015621,2]
[400731465,1767802241452,-1000.0,0.00015621,2]
[400731466,1767802241462,-1000.0,0.00015621,2]
[400731467,1767802241472,-1000.0,0.00015621,2]
[400731468,1767802241483,-1000.0,0.00015621,2]
[400731469,1767802241492,-1000.0,0.00015621,2]
[400731470,1767802241502,-1000.0,0.00015621,2]
[400731471,1767802241511,-480.04186632,0.00015621,2]
[400731472,1767802241522,-1000.0,0.00015621,2]
[400731473,1767802241532,-500.0,0.00015621,2]
[400731474,1767802241541,-500.0,0.00015621,2]
[400731475,1767802241553,-237.23316124,0.00015621,2]
[400731476,1767802241563,-438.43604995,0.00015621,2]
[400731477,1767802241572,-519.44971303,0.00015621,2]
[400731478,1767802241582,-1000.0,0.00015621,2]
[400731479,1767802241591,-1000.0,0.00015621,2]
[400731480,1767802241600,-1626.81,0.00015621,2]
[400731481,1767802241610,-200.0,0.00015624,2]
[400731482,1767802241620,-200.0,0.00015624,2]
[400731483,1767802241630,-500.0,0.00015669,2]
[400731484,1767802241639,-539.0,0.00015669,2]
[400731485,1767802241649,-500.0,0.00015669,2]
[400731486,1767802241659,-980.0,0.00015669,2]
[400731487,1767802241669,-1111.0,0.00015669,2]
[400731488,1767802241679,-574.78,0.00015687,2]
[400731489,1767802241689,-500.0,0.00015724,2]
[400731490,1767802241699,-539.0,0.00015724,2]
[400731491,1767802241708,-500.0,0.00015724,2]
[400731492,1767802241719,-980.0,0.00015724,2]
[400731493,1767802241728,-1111.0,0.00015724,2]
[400731494,1767802241738,-500.0,0.0001574,2]
[400731495,1767802241748,-500.0,0.0001574,2]
[400731496,1767802241758,-500.0,0.0001574,2]
[400731497,1767802241767,-1706.94994783,0.00015741,2]
[400731498,1767802241776,-600.0,0.00015748,2]
[400731499,1767802241787,-151.0,0.00015754,2]
[400731500,1767802241797,-151.0,0.00015754,2]
[400731501,1767802241806,-500.0,0.00015779,2]
[400731502,1767802241816,-539.0,0.00015779,2]
[400731503,1767802241826,-500.0,0.00015779,2]
[400731504,1767802241836,-980.0,0.00015779,2]
[400731505,1767802241845,-1111.0,0.00015779,2]
[400731506,1767802241855,-491.58151617,0.00015834,2]
[400731507,1767802241864,-539.0,0.00015834,2]
[400731508,1767802241874,-500.0,0.00015834,2]
[400731509,1767802241884,-980.0,0.00015834,2]
[400731510,1767802241894,-1111.0,0.00015834,2]
[400731511,1767802241904,-500.0,0.00015846,2]
[400731512,1767802241914,-166.66,0.00015871,2]
[400731513,1767802241925,-539.0,0.00015889,2]
[400731514,1767802241937,-500.0,0.00015889,2]
[400731515,1767802241949,-980.0,0.00015889,2]
[400731516,1767802241959,-1111.0,0.00015889,2]
[400731517,1767802241969,-1626.81,0.00015895,2]
[400731518,1767802241978,-5075.00499792,0.000159,2]
[400731519,1767802241988,-5075.0049979,0.000159,2]
[400731520,1767802241997,-5075.0049979,0.000159,2]
[400731521,1767802242008,-5075.0049979,0.000159,2]
[400731522,1767802242019,-21104.55232392,0.00015911,2]
[400731523,1767802242028,-28856.46065488,0.00015911,2]
[400731524,1767802242039,-1000.0,0.00015918,2]
[400731525,1767802242049,-539.0,0.00015943,2]
[400731526,1767802242059,-517.05568559,0.00015943,2]
[400731527,1767802242068,-980.0,0.00015943,2]
[400731528,1767802242078,-1111.0,0.00015943,2]
[400731529,1767802242088,-539.0,0.00015998,2]
[400731530,1767802242098,-980.0,0.00015998,2]
[400731531,1767802242108,-1111.0,0.00015998,2]
[400731532,1767802242118,-539.0,0.00016053,2]
[400731533,1767802242132,-980.0,0.00016053,2]
[400731534,1767802242141,-1111.0,0.00016053,2]
[400731535,1767802242151,-539.0,0.00016108,2]
[400731536,1767802242161,-980.0,0.00016108,2]
[400731537,1767802242170,-1111.0,0.00016108,2]
[400731538,1767802242181,-500.0,0.00016115,2]
[400731539,1767802242191,-500.0,0.00016115,2]
[400731540,1767802242203,-9247.15,0.00016116,2]
[400731541,1767802242214,-516.35240898,0.0001612,2]
[400731542,1767802242224,-510.0,0.0001613,2]
[400731543,1767802242234,-539.0,0.00016162,2]
[400731544,1767802242244,-980.0,0.00016162,2]
[400731545,1767802242254,-1111.0,0.00016162,2]
[400731546,1767802242265,-1626.81,0.00016168,2]
[400731547,1767802242277,-1001.56852644,0.00016168,2]
[400731548,1767802242293,-1500.0,0.00016168,2]
[400731549,1767802242303,-321.82288534,0.00016168,2]
[400731550,1767802242314,-1500.0,0.00016168,2]
[400731551,1767802242327,-1500.0,0.00016168,2]
[400731552,1767802242337,-411.91622264,0.00016168,2]
[400731553,1767802242347,-1500.0,0.00016168,2]
[400731554,1767802242359,-515.65451742,0.00016168,2]
[400731555,1767802242370,-1128.37348131,0.00016168,2]
[400731556,1767802242379,-1500.0,0.00016168,2]
[400731557,1767802242392,-1500.0,0.00016168,2]
[400731558,1767802242401,-1500.0,0.00016168,2]
[400731559,1767802242410,-1018.35967674,0.00016168,2]
[400731560,1767802242420,-1500.0,0.00016168,2]
[400731561,1767802242432,-509.96734995,0.00016168,2]
[400731562,1767802242442,-1500.0,0.00016168,2]
[400731563,1767802242453,-1706.94994783,0.00016173,2]
[400731564,1767802242463,-166.66,0.00016179,2]
[400731565,1767802242474,-552.79963653,0.00016217,2]
[400731566,1767802242485,-1120.24922462,0.00016217,2]
[400731567,1767802242495,-986.0,0.00016217,2]
[400731568,1767802242504,-200.0,0.00016227,2]
[400731569,1767802242515,-207.4,0.00016227,2]
[400731570,1767802242528,-215.0738,0.00016227,2]
[400731571,1767802242538,-151.55763012,0.00016227,2]
[400731572,1767802242549,-223.0315306,0.00016227,2]
[400731573,1767802242558,-231.28369723,0.00016227,2]
[400731574,1767802242568,-2000.0,0.00016227,2]
[400731575,1767802242577,-239.84119403,0.00016227,2]
[400731576,1767802242587,-574.12855637,0.00016227,2]
[400731577,1767802242597,-2000.0,0.00016227,2]
[400731578,1767802242607,-248.71531821,0.00016227,2]
[400731579,1767802242617,-1500.0,0.00016227,2]
[400731580,1767802242632,-2000.0,0.00016227,2]
[400731581,1767802242642,-257.91778498,0.00016227,2]
[400731582,1767802242653,-1500.0,0.00016227,2]
[400731583,1767802242663,-2000.0,0.00016227,2]
[400731584,1767802242673,-267.46074303,0.00016227,2]
[400731585,1767802242682,-500.0,0.00016227,2]
[400731586,1767802242692,-1500.0,0.00016227,2]
[400731587,1767802242702,-2000.0,0.00016227,2]
[400731588,1767802242712,-277.35679052,0.00016227,2]
[400731589,1767802242725,-500.0,0.00016227,2]
[400731590,1767802242735,-1500.0,0.00016227,2]
[400731591,1767802242746,-2000.0,0.00016227,2]
[400731592,1767802242756,-500.0,0.00016227,2]
[400731593,1767802242766,-1500.0,0.00016227,2]
[400731594,1767802242778,-2000.0,0.00016227,2]